bitfinex-derivatives/quotes_ETHF0:USTF0_20250114
["timestamp","ask_amount","ask_price","bid_price","bid_amount"]
[1736872631394,0.3133,3193.3,3193.2,0.3133]
[1736872631600,1.388,3193.6,3192.8,3.2078]
[1736872631802,0.3133,3193.2,3193.1,0.3133]
[1736872632591,1.388,3193.6,3192.7,44.11724606]
[1736872632592,3.2078,3193.4,3192.7,44.11724606]
[1736872632795,3.2078,3193.4,3192.8,0.31333]
[1736872632796,0.31334,3192.9,3192.8,0.31333]
[1736872633697,0.4864,3193.3,3192.8,3.2078]
[1736872633998,3.2078,3193.4,3193.0,3.31724606]
[1736872634494,0.31331,3193.1,3193.0,0.31331]
[1736872635003,0.3133,3193.2,3193.1,0.31331]
[1736872635295,0.31332,3193.1,3193.0,0.31332]
[1736872635501,0.31332,3193.0,3192.9,0.31332]
[1736872635799,0.31333,3192.9,3192.8,3.2078]
[1736872636097,0.31333,3192.9,3191.2,4.90843228]
[1736872636098,0.78341,3192.6,3191.5,0.78367]
[1736872636296,0.31341,3192.1,3192.0,0.31341]
[1736872636602,0.3134,3192.2,3192.1,0.3134]
[1736872636994,0.31342,3192.0,3191.9,0.31343]
[1736872637297,0.31345,3191.7,3191.6,40.8]
[1736872639793,0.31345,3191.7,3191.6,41.11346]
[1736872640300,0.31345,3191.7,3191.6,40.8]
[1736872640899,0.31352,3191.0,3190.9,0.31352]
[1736872641106,0.31355,3190.7,3190.6,3.2078]
[1736872641500,0.31355,3190.7,3190.6,44.32136]
[1736872641697,0.31355,3190.7,3190.6,40.8]
[1736872642096,0.31355,3190.7,3190.6,41.11356]
[1736872642400,0.9945,3191.0,3190.2,6.52504606]
[1736872642401,4.2023,3191.0,3190.2,6.52504606]
[1736872642789,4.2023,3191.0,3190.3,0.31358]
[1736872642790,0.31358,3190.4,3190.3,0.31358]
[1736872642996,0.31354,3190.8,3190.4,0.31357]
[1736872643200,3.63772429,3190.9,3190.3,40.8]
[1736872643406,0.31358,3190.4,3190.3,40.8]
[1736872643792,3.76176676,3190.4,3190.3,40.8]
[1736872644906,0.31358,3190.4,3190.3,40.8]
[1736872645107,3.93977026,3190.4,3190.3,40.8]
[1736872647796,0.31362,3189.9,3189.8,3.2078]
[1736872648405,0.31362,3189.9,3189.8,44.0078]
[1736872650201,0.31362,3189.9,3189.8,40.8]
[1736872650500,4.5968,3190.7,3189.8,44.0078]
[1736872650694,3.2078,3190.7,3190.4,0.31357]
[1736872650895,0.31357,3190.5,3190.0,3.31724606]
[1736872651107,0.31358,3190.4,3190.3,0.31358]
[1736872651302,3.2078,3190.7,3190.0,3.31724606]
[1736872651498,0.31357,3190.6,3190.4,0.31357]
[1736872651697,3.52135,3190.7,3190.5,0.31356]
[1736872651904,0.31353,3190.9,3190.6,3.31724606]
[1736872652105,0.31354,3190.8,3190.7,0.31354]
[1736872652305,0.31356,3190.6,3190.5,0.31357]
[1736872652900,1.393,3191.2,3190.4,3.2078]
[1736872653110,0.31355,3190.7,3190.6,0.31356]
[1736872653408,3.31389604,3191.1,3190.6,3.31724606]
[1736872653609,0.31354,3190.8,3190.6,3.63079606]
[1736872654004,0.31355,3190.7,3190.6,3.63079606]
[1736872654307,0.31356,3190.6,3190.4,3.2078]
[1736872654608,0.31356,3190.6,3190.5,0.31357]
[1736872654808,0.31353,3190.9,3190.7,0.31354]
[1736872655202,0.31354,3190.8,3190.7,0.31354]
[1736872655402,1.393,3191.3,3190.7,40.8]
[1736872655599,1.393,3191.3,3191.0,0.31351]
[1736872655800,3.2078,3191.5,3190.9,3.31724606]
[1736872656015,3.2078,3191.5,3191.2,3.31724606]
[1736872656315,0.31345,3191.7,3191.5,0.31346]
[1736872656609,2.3754,3192.1,3191.5,3.31724606]
[1736872656610,0.31343,3191.9,3191.5,3.31724606]
[1736872656802,0.31342,3192.0,3191.6,0.31346]
[1736872657005,3.7349,3192.2,3191.8,3.31724606]
[1736872657006,3.2078,3192.2,3191.8,3.31724606]
[1736872657211,0.31336,3192.7,3192.1,6.52504606]
[1736872657419,0.31334,3192.8,3192.6,0.31335]
[1736872657611,4.79644191,3193.0,3192.7,3.31724606]
[1736872657911,4.79644191,3193.0,3192.6,0.31335]
[1736872657912,0.31335,3192.8,3192.6,0.31335]
[1736872658314,0.31333,3192.9,3192.7,0.31334]
[1736872658505,1.393,3193.0,3192.5,3.2078]
[1736872658706,3.2078,3193.7,3192.9,3.2078]
[1736872658914,0.31331,3193.2,3192.9,3.2078]
[1736872659102,0.31331,3193.1,3192.9,3.52112]
[1736872659307,0.31331,3193.1,3193.0,40.8]
[1736872659506,0.3133,3193.2,3193.0,40.8]
[1736872659911,0.31331,3193.1,3193.0,40.8]
[1736872661716,3.2078,3193.3,3192.6,0.31335]
[1736872661907,0.31333,3192.9,3192.5,3.2078]
[1736872662112,0.31333,3192.9,3192.6,0.31336]
[1736872662314,0.31333,3192.9,3192.7,41.11335]
[1736872662518,0.31332,3193.1,3192.5,3.2078]
[1736872662718,0.31332,3193.1,3192.7,3.31724606]
[1736872662916,0.3133,3193.2,3192.9,0.31333]
[1736872663115,3.2078,3193.3,3192.7,44.43059606]
[1736872663315,3.2078,3193.3,3192.7,40.8]
[1736872663516,0.31334,3192.9,3192.7,40.8]
[1736872663713,3.2078,3193.3,3192.7,44.11724606]
[1736872663912,0.31332,3193.1,3192.8,0.31334]
[1736872664118,3.2078,3193.3,3192.9,0.31332]
[1736872664317,0.3133,3193.2,3192.9,0.31332]
[1736872664517,0.31331,3193.1,3192.9,0.31332]
[1736872665009,3.2078,3193.3,3192.7,44.11724606]
[1736872665213,3.52109,3193.3,3193.0,0.31332]
[1736872665516,3.2078,3193.3,3193.1,0.3133]
[1736872665822,3.52109,3193.3,3193.0,0.31332]
[1736872666020,0.3133,3193.2,3192.9,0.31333]
[1736872666521,3.2078,3193.3,3192.7,44.11724606]
[1736872666723,0.31332,3193.0,3192.8,0.31333]
[1736872667020,3.2078,3193.3,3192.7,44.11724606]
[1736872667220,3.2078,3193.3,3193.1,0.31331]
[1736872667221,3.5211,3193.3,3193.1,0.31331]
[1736872667610,0.3133,3193.3,3193.1,0.31331]
[1736872668012,0.3133,3193.3,3192.9,3.2078]
[1736872668013,3.2078,3193.7,3193.0,3.31724606]
[1736872668420,0.31329,3193.4,3193.2,0.31329]
[1736872668617,0.3133,3193.3,3193.1,0.3133]
[1736872669216,0.78316,3193.6,3192.9,3.2078]
[1736872669419,0.31332,3193.1,3192.9,3.52113]
[1736872669616,3.2078,3193.7,3192.9,3.2078]
[1736872669818,0.31332,3193.0,3192.9,3.2078]
[1736872670216,0.31334,3192.9,3192.7,41.11334]
[1736872670625,0.78319,3193.5,3192.7,40.8]
[1736872670924,3.2078,3193.7,3192.8,3.2078]
[1736872671118,0.31332,3193.1,3192.9,0.31332]
[1736872671714,0.31332,3193.1,3192.9,0.31333]
[1736872671715,0.31331,3193.1,3192.9,0.31333]
[1736872671929,0.31331,3193.1,3192.8,3.2078]
[1736872672122,0.78319,3193.5,3192.8,3.2078]
[1736872672322,3.2078,3193.7,3192.8,3.2078]
[1736872672619,0.31329,3193.3,3193.1,0.3133]
[1736872672826,0.31331,3193.2,3193.0,0.31332]
[1736872673124,0.31331,3193.1,3193.0,0.31332]
[1736872673424,0.31331,3193.2,3193.1,0.31331]
[1736872674924,3.2078,3193.7,3193.1,0.3133]
[1736872675121,0.3133,3193.2,3193.1,0.3133]
[1736872675321,0.31331,3193.1,3193.0,0.31332]
[1736872675625,0.31332,3193.0,3192.9,0.31333]
[1736872676218,0.31333,3192.9,3192.8,3.52113]
[1736872676522,0.31333,3192.9,3192.8,0.31333]
[1736872676728,0.31333,3193.0,3192.9,0.31332]
[1736872676930,0.31331,3193.2,3193.1,0.3133]
[1736872677121,3.2078,3193.7,3192.8,3.2078]
[1736872677328,0.31329,3193.3,3193.2,0.31329]
[1736872677522,3.2078,3193.7,3192.8,3.99114]
[1736872677523,3.2078,3193.7,3192.8,3.2078]
[1736872677721,0.78316,3193.6,3192.8,3.2078]
[1736872678029,0.31334,3192.8,3192.7,40.8]
[1736872678217,3.52114,3192.8,3192.7,40.8]
[1736872678421,0.3134,3192.3,3192.2,0.3134]
[1736872678722,3.2078,3192.8,3192.0,3.7355]
[1736872678921,0.31339,3192.4,3192.3,40.8]
[1736872679125,3.52119,3192.4,3192.3,40.8]
[1736872680526,3.2078,3192.8,3192.3,40.8]
[1736872680833,3.19082,3193.1,3193.0,0.31332]
[1736872681528,4.5908,3193.6,3193.0,40.8]
[1736872681725,0.31329,3193.4,3193.3,0.31329]
[1736872681926,3.84294436,3193.7,3193.6,0.31326]
[1736872682226,0.31324,3193.8,3193.7,0.31325]
[1736872682625,0.51,3193.9,3193.7,40.8]
[1736872683029,0.31324,3193.8,3193.7,40.8]
[1736872686030,0.31324,3193.8,3193.3,0.31329]
[1736872686031,0.31326,3193.7,3193.3,0.31329]
[1736872686436,3.58266748,3193.8,3193.4,41.11327]
[1736872686636,3.89591748,3193.8,3193.5,0.31327]
[1736872687133,0.31327,3193.5,3193.4,40.8]
[1736872687336,0.31327,3193.5,3192.7,3.2078]
[1736872687337,0.78321,3193.5,3192.7,3.2078]
[1736872687634,0.31331,3193.2,3193.0,0.31332]
[1736872687935,0.31331,3193.2,3193.1,40.8]
[1736872688138,1.0175,3193.4,3193.1,40.8]
[1736872688336,0.3133,3193.3,3193.2,0.31329]
[1736872688636,3.92326749,3193.3,3193.2,0.31329]
[1736872688835,0.3133,3193.2,3193.1,41.11331]
[1736872689135,3.92326749,3193.3,3193.2,0.3133]
[1736872689336,0.5092,3193.4,3193.3,0.31329]
[1736872691742,1.0205,3193.9,3193.2,0.3133]
[1736872691942,1.0205,3193.9,3193.5,0.31327]
[1736872691943,0.31326,3193.6,3193.5,0.31327]
[1736872692247,3.52362539,3193.7,3193.1,44.79107]
[1736872692447,3.52362539,3193.8,3193.1,44.79107]
[1736872692637,1.41492889,3193.9,3193.1,44.0078]
[1736872692843,3.2078,3193.7,3193.1,44.0078]
[1736872693043,0.3133,3193.2,3193.1,44.3211]
[1736872693242,0.78316,3193.6,3193.2,0.31329]
[1736872693243,0.3133,3193.3,3193.2,0.31329]
[1736872693444,0.3133,3193.2,3193.1,41.1133]
[1736872693646,0.3133,3193.2,3193.1,40.8]
[1736872693845,3.63706484,3193.2,3193.1,40.8]
[1736872694048,4.57546484,3193.2,3193.1,40.8]
[1736872694547,4.57546484,3193.2,3192.3,4.10071606]
[1736872694548,0.31336,3192.6,3192.3,4.10071606]
[1736872694739,0.31343,3191.9,3191.8,0.31343]
[1736872695048,0.31343,3191.9,3191.4,0.7837]
[1736872695049,3.45128622,3191.9,3191.5,40.8]
[1736872695249,0.31346,3191.6,3191.5,40.8]
[1736872696248,3.52126,3191.6,3191.5,40.8]
[1736872696444,3.52126,3191.6,3190.4,0.31357]
[1736872696445,0.31356,3190.6,3190.4,0.31357]
[1736872696639,0.31357,3190.5,3190.0,3.2078]
[1736872696841,4.5908,3190.9,3190.4,0.31357]
[1736872697055,0.31356,3190.6,3190.5,40.8]
[1736872697549,3.92947356,3190.6,3190.5,40.8]
[1736872698747,1.69656,3190.6,3190.5,40.8]
[1736872698938,1.383,3190.6,3190.5,40.8]
[1736872699140,1.69656,3190.6,3190.5,40.8]
[1736872699343,5.15502332,3190.6,3190.5,40.8]
[1736872699941,0.78398,3190.3,3189.1,0.3137]
[1736872700151,0.31367,3189.5,3189.0,3.2078]
[1736872700347,0.31367,3189.5,3189.3,0.31368]
[1736872700746,0.31367,3189.4,3189.2,41.11369]
[1736872700939,0.31367,3189.5,3189.2,40.8]
[1736872701249,0.31368,3189.3,3189.2,40.8]
[1736872701445,0.31367,3189.5,3189.2,40.8]
[1736872701645,0.31367,3189.5,3189.2,41.11369]
[1736872702242,0.31368,3189.4,3189.2,40.8]
[1736872702552,0.31366,3189.5,3189.2,41.11369]
[1736872702749,6.54048217,3189.6,3189.2,40.8]
[1736872702949,0.31367,3189.5,3189.2,41.11369]
[1736872703354,3.33268217,3189.6,3189.2,40.8]
[1736872703852,3.64634217,3189.6,3189.3,0.31368]
[1736872704048,3.33268217,3189.6,3189.2,40.8]
[1736872704246,0.31367,3189.5,3189.2,41.11369]
[1736872704446,0.31365,3189.6,3189.3,0.31368]
[1736872704647,0.31365,3189.6,3189.2,40.8]
[1736872704648,3.4598482,3189.6,3189.4,0.31367]
[1736872704849,3.6849956,3189.7,3189.4,0.31367]
[1736872705046,1.384,3189.8,3189.2,40.8]
[1736872705452,3.3713456,3189.6,3189.0,3.31724606]
[1736872705649,3.3713456,3189.7,3189.0,3.31724606]
[1736872705851,0.31365,3189.7,3189.6,40.8]
[1736872706251,1.384,3189.8,3189.6,40.8]
[1736872706453,3.73574395,3189.7,3189.6,40.8]
[1736872707048,4.22014395,3189.7,3189.6,40.8]
[1736872707755,0.31364,3189.7,3189.6,40.8]
[1736872709054,1.384,3189.8,3189.7,0.31364]
[1736872709351,4.5918,3190.0,3189.6,40.8]
[1736872709558,0.31363,3189.9,3189.7,0.31364]
[1736872709959,0.31364,3189.7,3189.6,40.8]
[1736872711664,4.5918,3190.0,3189.6,40.8]
[1736872711962,1.384,3190.0,3189.6,40.8]
[1736872712267,0.78398,3190.3,3189.6,40.8]
[1736872712456,1.392,3190.2,3189.6,41.11365]
[1736872712763,3.34766935,3190.1,3189.6,40.8]
[1736872713061,0.31364,3189.7,3189.6,40.8]
[1736872713457,3.2078,3190.0,3189.6,41.11365]
[1736872713458,0.31364,3189.8,3189.6,41.11365]
[1736872714056,0.31364,3189.7,3189.6,40.8]
[1736872714462,3.2078,3190.0,3189.6,40.8]
[1736872714666,0.31364,3189.8,3189.6,41.11365]
[1736872714862,0.31364,3189.7,3189.6,40.8]
[1736872715760,4.5998,3190.0,3189.6,40.8]
[1736872716065,3.52142,3190.0,3189.8,0.31363]
[1736872716262,3.2078,3190.0,3189.6,40.8]
[1736872716661,0.31364,3189.7,3189.6,40.8]
[1736872718366,0.31363,3189.9,3189.7,0.31364]
[1736872718566,0.31363,3189.8,3189.7,0.31364]
[1736872718766,0.31363,3189.8,3189.6,40.8]
[1736872718767,3.2078,3190.0,3189.6,40.8]
[1736872718968,3.52142,3190.0,3189.8,0.31363]
[1736872719165,3.2078,3190.0,3189.6,40.8]
[1736872719367,0.31364,3189.8,3189.7,0.31364]
[1736872719565,3.2078,3190.0,3189.6,40.8]
[1736872719761,0.31362,3189.9,3189.7,0.31364]
[1736872719965,0.31363,3189.8,3189.7,0.31364]
[1736872720272,3.2078,3190.0,3189.9,0.31362]
[1736872720472,0.31361,3190.1,3190.0,0.31361]
[1736872720860,3.6847,3190.5,3189.8,0.4682]
[1736872721059,0.3136,3190.2,3190.1,0.3136]
[1736872722268,0.31359,3190.3,3190.2,0.31359]
[1736872722472,0.31359,3190.3,3190.2,0.39216088]
[1736872722967,0.3136,3190.2,3190.1,3.2078]
[1736872723168,0.3136,3190.2,3190.1,3.60001501]
[1736872723375,1.8704,3190.8,3190.1,4.22754884]
[1736872723668,0.31358,3190.4,3190.3,0.31358]
[1736872723871,0.31358,3190.4,3190.3,1.01974884]
[1736872724068,3.86784646,3190.4,3190.3,0.39221501]
[1736872724367,1.8704,3190.8,3190.3,1.22320454]
[1736872724565,3.2078,3190.9,3190.4,42.02320852]
[1736872724764,0.31357,3190.5,3190.4,41.11357]
[1736872724966,0.31357,3190.5,3190.4,41.819677]
[1736872725168,0.31357,3190.5,3190.4,42.02338666]
[1736872725469,3.64265785,3190.5,3190.4,42.02339455]
[1736872725772,0.31357,3190.5,3190.4,42.02339455]
[1736872725967,0.31357,3190.5,3190.4,41.819677]
[1736872726362,6.79959519,3190.5,3190.4,1.01973401]
[1736872726565,14.80327125,3190.5,3189.4,3.2078]
[1736872726870,0.31366,3189.6,3189.5,40.8]
[1736872727071,0.31366,3189.6,3189.5,41.00254717]
[1736872728272,0.31366,3189.6,3189.5,40.8]
[1736872732070,3.76157724,3189.6,3189.5,40.8]
[1736872732275,6.96937724,3189.6,3189.5,40.8]
[1736872732678,6.65571724,3189.6,3188.9,3.52152]
[1736872732977,0.31371,3189.0,3188.9,3.52152]
[1736872733174,0.31371,3189.0,3188.9,44.32152]
[1736872733377,0.31371,3189.0,3187.2,3.90415557]
[1736872733378,11.64093062,3189.0,3187.9,3.2078]
[1736872733671,0.3138,3188.2,3188.0,0.31381]
[1736872733870,0.3138,3188.2,3187.9,3.2078]
[1736872733871,1.393,3188.4,3188.3,0.31378]
[1736872734076,0.31378,3188.3,3188.1,40.8]
[1736872734777,0.31379,3188.2,3188.1,40.8]
[1736872734974,1.393,3188.4,3188.1,40.8]
[1736872735477,0.31378,3188.3,3188.1,40.8]
[1736872735775,1.70678,3188.4,3188.1,41.1138]
[1736872735978,1.393,3188.4,3188.1,40.8]
[1736872736177,0.31379,3188.2,3188.1,40.8]
[1736872736777,0.31379,3188.3,3188.1,40.8]
[1736872737270,0.31379,3188.2,3188.1,40.8]
[1736872737479,1.393,3189.0,3188.1,40.8]
[1736872737671,3.2078,3189.1,3188.8,0.31373]
[1736872737874,3.2078,3189.1,3188.7,3.2078]
[1736872738175,0.31373,3188.9,3188.7,3.52154]
[1736872738576,0.31373,3188.8,3188.7,3.2078]
[1736872738875,0.31376,3188.6,3188.3,3.2078]
[1736872739074,0.78426,3189.2,3188.3,3.2078]
[1736872739075,3.99209,3189.1,3188.3,3.2078]
[1736872739378,0.31377,3188.4,3188.3,3.2078]
[1736872740075,0.31377,3188.4,3188.3,44.0078]
[1736872740879,0.31377,3188.4,3188.3,40.8]
[1736872742778,3.62610882,3188.4,3188.3,40.8]
[1736872743180,6.94335488,3188.4,3188.3,40.8]
[1736872743476,6.94335488,3188.4,3187.7,3.2078]
[1736872743477,0.31383,3187.8,3187.7,3.2078]
[1736872743874,0.31383,3187.8,3187.7,44.0078]
[1736872746180,0.31383,3187.8,3187.7,40.8]
[1736872746678,3.82922949,3187.8,3187.7,40.8]
[1736872746981,4.28722949,3187.8,3187.7,40.8]
[1736872747579,0.77183,3187.8,3187.7,40.8]
[1736872747972,3.2078,3187.9,3187.7,40.8]
[1736872748181,3.2078,3188.3,3187.7,40.8]
[1736872748373,0.31378,3188.4,3188.3,0.31378]
[1736872748577,0.78441,3188.5,3187.8,3.6847]
[1736872748777,0.31382,3187.9,3187.8,0.4769]
[1736872748978,0.31382,3187.9,3187.8,40.8]
[1736872749183,3.78874603,3187.9,3187.8,40.8]
[1736872750786,6.99654603,3187.9,3187.8,40.8]
[1736872750983,7.44824603,3187.9,3187.8,40.8]
[1736872752289,0.78459,3187.8,3185.6,3.2078]
[1736872752582,3.99255,3187.2,3186.1,3.2078]
[1736872752785,1.401,3187.1,3186.2,40.8]
[1736872752990,3.53166123,3187.1,3186.7,0.31394]
[1736872753185,4.6088,3187.2,3186.4,3.31724606]
[1736872753391,4.6088,3187.2,3186.7,0.31393]
[1736872753392,0.31392,3186.9,3186.7,0.31393]
[1736872753687,0.31392,3187.0,3186.7,0.31393]
[1736872753888,0.31069853,3187.1,3186.5,3.6757]
[1736872754189,3.2078,3187.6,3186.7,3.31724606]
[1736872754376,0.31386,3187.5,3187.2,0.31388]
[1736872754576,0.31387,3187.4,3187.3,3.2078]
[1736872755585,3.2078,3187.7,3186.8,3.2078]
[1736872755786,0.31389,3187.2,3187.1,0.3139]
[1736872756677,3.2078,3187.7,3186.8,3.2078]
[1736872756883,0.31383,3187.8,3187.6,0.31384]
[1736872757087,3.2078,3188.1,3187.3,3.31724606]
[1736872757287,0.31386,3187.5,3187.4,0.77577]
[1736872757589,0.31385,3187.7,3187.5,0.31386]
[1736872757890,3.2078,3188.1,3187.4,41.2619]
[1736872758086,0.31385,3187.7,3187.5,0.31385]
[1736872758291,0.31386,3187.6,3187.5,0.31386]
[1736872758689,0.31386,3187.5,3187.4,41.2619]
[1736872759586,0.31386,3187.5,3187.4,40.8]
[1736872761894,3.62155496,3187.5,3187.4,40.8]
[1736872763687,0.31386,3187.5,3187.4,40.8]
[1736872764394,0.31386,3187.5,3187.4,41.11387]
[1736872764693,0.31386,3187.5,3187.4,40.8]
[1736872764895,0.31386,3187.5,3187.4,41.11387]
[1736872765194,0.31386,3187.5,3187.4,40.8]
[1736872765395,0.31386,3187.5,3187.4,41.11387]
[1736872766092,0.31384,3187.7,3187.6,0.31385]
[1736872766285,0.4967,3187.8,3187.4,40.8]
[1736872766692,0.31384,3187.7,3187.6,0.31384]
[1736872766994,0.31386,3187.5,3187.4,40.8]
[1736872768582,0.4967,3187.8,3187.4,40.8]
[1736872768787,3.52161,3188.1,3188.0,0.31381]
[1736872768988,3.2078,3188.1,3188.0,0.31381]
[1736872769190,3.5216,3188.1,3188.0,0.31381]
[1736872769593,3.5216,3188.1,3188.0,41.11381]
[1736872769792,3.2078,3188.1,3188.0,41.11381]
[1736872769992,3.5216,3188.1,3188.0,41.11381]
[1736872770198,3.2078,3188.1,3188.0,40.8]
[1736872770391,3.5216,3188.1,3188.0,41.11381]
[1736872771097,0.3138,3188.1,3188.0,41.11381]
[1736872771689,6.73968662,3188.6,3188.0,41.11381]
[1736872771892,0.3138,3188.2,3188.1,0.3138]
[1736872772089,0.3138,3188.1,3188.0,41.11381]
[1736872772392,0.3138,3188.1,3188.0,40.8]
[1736872772599,4.34086955,3188.1,3187.2,0.4691]
[1736872772987,0.31382,3187.9,3187.8,0.31383]
[1736872773191,0.31381,3188.1,3188.0,0.31381]
[1736872773394,3.53189662,3188.5,3187.5,3.2078]
[1736872773693,3.53189662,3188.5,3187.9,0.31382]
[1736872773694,0.31382,3188.0,3187.9,0.31382]
[1736872774088,0.31382,3188.0,3187.9,41.11382]
[1736872774793,0.3138,3188.2,3188.1,0.3138]
[1736872775195,0.31381,3188.1,3187.9,40.8]
[1736872775499,0.31379,3188.3,3188.2,0.31379]
[1736872776090,1.396,3189.0,3188.0,5.95527662]
[1736872776294,3.2078,3189.1,3188.4,2.74747662]
[1736872776500,3.2078,3189.5,3189.0,2.74747662]
[1736872776890,0.31369,3189.3,3189.1,0.3137]
[1736872777092,3.2078,3189.5,3189.1,0.3137]
[1736872777292,0.31367,3189.4,3189.2,0.31369]
[1736872777493,3.2078,3189.5,3189.2,0.31369]
[1736872777713,0.31367,3189.4,3189.3,0.38899723]
[1736872777897,0.31367,3189.4,3189.3,0.38899639]
[1736872778195,0.9326,3189.7,3189.3,0.38899639]
[1736872778399,0.9326,3189.7,3189.1,3.3255304]
[1736872778400,0.31364,3189.8,3189.4,0.38899639]
[1736872778603,3.2078,3189.9,3189.7,0.31364]
[1736872778803,0.31363,3189.8,3189.1,3.3255304]
[1736872779106,0.31365,3189.7,3189.5,0.31366]
[1736872779290,3.52143,3189.9,3189.7,0.31364]
[1736872779494,3.2078,3189.9,3189.1,3.6233304]
[1736872779799,3.2078,3189.9,3189.3,3.99201]
[1736872780099,0.31363,3189.8,3189.7,3.52144]
[1736872780400,0.31363,3189.9,3189.7,3.52144]
[1736872780601,0.31363,3189.9,3189.7,44.32144]
[1736872780992,0.31363,3189.8,3189.7,44.0078]
[1736872781395,0.31368,3189.4,3189.2,0.31369]
[1736872781591,0.4983,3189.7,3189.1,6.5333304]
[1736872781798,0.31367,3189.5,3189.4,0.31367]
[1736872781994,0.31367,3189.5,3189.4,41.11367]
[1736872782498,0.4983,3189.7,3189.4,40.8]
[1736872782704,0.31366,3189.5,3189.4,40.8]
[1736872783403,0.80366,3189.6,3189.4,40.8]
[1736872783597,0.80366,3189.6,3189.4,41.11367]
[1736872783908,0.31367,3189.5,3189.2,0.31369]
[1736872784100,3.6978,3189.6,3189.1,3.2078]
[1736872784307,0.4616,3189.4,3189.1,3.2078]
[1736872784497,0.31369,3189.3,3189.1,3.5215]
[1736872784811,3.67856207,3189.3,3189.2,40.8]
[1736872785599,3.36487207,3189.3,3189.2,40.8]
[1736872785905,4.01146,3189.6,3189.2,40.8]
[1736872786203,4.01146,3189.6,3189.5,0.31366]
[1736872786204,3.2078,3189.6,3189.5,0.31366]
[1736872786504,0.4983,3189.7,3189.5,0.31366]
[1736872786505,0.31362,3190.0,3189.9,0.31362]
[1736872786797,3.2078,3190.6,3189.8,0.78409]
[1736872787006,3.52136,3190.6,3190.4,0.31357]
[1736872787203,3.52136,3190.6,3190.0,3.3255304]
[1736872787204,3.2078,3190.6,3190.0,3.3255304]
[1736872787406,3.2078,3190.6,3190.4,0.31357]
[1736872787600,3.52136,3190.6,3190.4,0.31357]
[1736872787802,3.2078,3190.6,3190.0,3.3255304]
[1736872788006,3.52136,3190.6,3190.4,0.31357]
[1736872788212,0.31357,3190.5,3190.3,0.31358]
[1736872788703,3.2078,3190.6,3190.0,3.3255304]
[1736872788902,0.31357,3190.5,3190.3,0.31358]
[1736872789093,3.2078,3190.6,3190.4,0.31357]
[1736872789094,3.52136,3190.6,3190.4,0.31357]
[1736872789504,0.31357,3190.5,3190.4,0.31357]
[1736872789906,0.9506,3190.8,3190.4,0.31357]
[1736872790097,0.9506,3190.8,3190.3,3.2078]
[1736872790292,3.2078,3191.4,3190.7,3.2078]
[1736872790503,0.9618,3191.9,3191.3,0.31349]
[1736872790707,0.9618,3191.9,3191.2,3.3255304]
[1736872790897,3.35221964,3191.8,3191.2,3.3255304]
[1736872791097,0.9618,3191.9,3191.3,40.8]
[1736872791508,0.9618,3191.9,3191.3,41.11348]
[1736872791708,0.9618,3191.9,3191.4,0.31347]
[1736872792305,0.9618,3191.9,3191.3,40.8]
[1736872792505,0.9618,3191.9,3191.4,0.31348]
[1736872792715,0.9618,3191.9,3191.3,41.11348]
[1736872793009,0.9618,3191.9,3191.3,40.8]
[1736872793505,0.9618,3191.9,3191.1,3.2078]
[1736872793506,3.2078,3191.6,3191.1,3.2078]
[1736872793903,0.31349,3191.3,3191.1,3.2078]
[1736872794404,0.3135,3191.2,3191.1,3.2078]
[1736872794605,0.31352,3191.0,3190.6,0.31356]
[1736872794806,0.31352,3191.0,3190.5,3.52136]
[1736872795102,3.35443356,3190.9,3190.6,40.8]
[1736872795405,0.31349,3191.3,3191.0,0.31352]
[1736872795612,3.2078,3191.6,3190.8,0.31353]
[1736872795613,0.3135,3191.2,3190.8,0.31353]
[1736872796210,0.31351,3191.1,3190.8,0.31353]
[1736872796705,0.31348,3191.4,3190.5,3.52136]
[1736872796910,0.31354,3190.8,3190.5,3.52136]
[1736872797110,0.31355,3190.7,3190.5,3.52136]
[1736872797408,0.31351,3191.1,3190.9,0.31352]
[1736872797609,0.31352,3191.0,3190.8,0.31353]
[1736872797811,0.31351,3191.1,3190.9,0.31353]
[1736872798010,0.31352,3191.0,3190.8,0.31353]
[1736872798204,0.31354,3190.8,3190.6,0.31355]
[1736872798411,0.31353,3190.9,3190.7,0.31354]
[1736872798711,0.4704,3191.5,3190.5,3.2078]
[1736872798900,0.31352,3191.0,3190.8,0.31353]
[1736872799499,0.4704,3191.5,3190.5,3.2078]
[1736872799714,0.31351,3191.1,3190.8,0.31353]
[1736872800007,0.31351,3191.1,3190.9,0.31352]
[1736872800219,0.4704,3191.5,3190.9,3.2078]
[1736872800413,3.2078,3192.4,3191.4,40.8]
[1736872800615,3.2078,3192.4,3192.3,0.31339]
[1736872800913,4.1087604,3193.4,3192.6,0.31336]
[1736872800914,3.52114,3192.9,3192.6,0.31336]
[1736872801106,3.2078,3192.9,3192.5,3.3255304]
[1736872801301,3.2078,3192.9,3192.7,41.11334]
[1736872801614,0.31334,3192.8,3192.7,40.8]
[1736872801810,0.31334,3192.8,3192.2,3.2078]
[1736872801811,0.31341,3192.2,3191.8,6.9943304]
[1736872802015,0.4905,3192.7,3191.8,6.9943304]
[1736872802316,3.9914,3191.9,3191.4,40.8]
[1736872802615,6.86919786,3192.1,3190.7,6.5333304]
[1736872802616,0.31348,3191.4,3191.0,0.31351]
[1736872802808,0.3135,3191.2,3190.7,6.5333304]